bitfinex/quotes_BTCUSD_20240921
["timestamp","ask_amount","ask_price","bid_price","bid_amount"]
[1726944257536,0.07105923,63304.0,63303.0,0.004]
[1726944257764,0.25779938,63305.0,63303.0,0.003]
[1726944258203,0.25779938,63305.0,63303.0,0.006]
[1726944258390,0.07105672,63304.0,63303.0,0.006]
[1726944258926,0.25779938,63305.0,63303.0,0.01492592]
[1726944259018,0.5365481,63305.0,63303.0,0.003]
[1726944259468,0.07105558,63304.0,63303.0,0.003]
[1726944259696,0.09474571,63304.0,63303.0,0.003]
[1726944259913,0.5365481,63305.0,63301.0,0.158173]
[1726944260156,0.04736999,63302.0,63301.0,0.158173]
[1726944260581,0.07105498,63302.0,63301.0,0.17547195]
[1726944261002,0.07105498,63303.0,63301.0,0.17547195]
[1726944261210,0.07105498,63303.0,63301.0,0.17847195]
[1726944261455,0.07105498,63303.0,63301.0,0.161173]
[1726944261876,0.07105498,63302.0,63301.0,0.167173]
[1726944262086,0.07105498,63302.0,63301.0,0.164173]
[1726944262331,0.07105498,63302.0,63301.0,0.158173]
[1726944263435,0.07105498,63302.0,63301.0,0.163173]
[1726944263650,0.07105498,63302.0,63301.0,0.170173]
[1726944263853,0.07105498,63302.0,63301.0,0.170999]
[1726944264741,0.07105498,63302.0,63301.0,0.165999]
[1726944265194,0.07105498,63302.0,63301.0,0.171999]
[1726944266563,0.07105205,63302.0,63301.0,0.171999]
[1726944268115,0.07105205,63302.0,63301.0,0.014026]
[1726944272512,0.25270607,63303.0,63301.0,0.014026]
[1726944272721,0.07105203,63302.0,63301.0,0.014026]
[1726944273166,0.25270607,63303.0,63301.0,0.014026]
[1726944273363,0.25270607,63303.0,63301.0,0.007026]
[1726944273621,0.09473607,63303.0,63301.0,0.013026]
[1726944273793,0.07105095,63302.0,63301.0,0.013026]
[1726944273993,0.07105095,63302.0,63301.0,0.007026]
[1726944274242,0.07105095,63302.0,63301.0,0.008026]
[1726944274397,0.07105095,63302.0,63301.0,0.006026]
[1726944274595,0.07105095,63302.0,63301.0,0.164001]
[1726944274803,0.04736993,63302.0,63301.0,0.170001]
[1726944275001,0.04736993,63302.0,63301.0,0.001026]
[1726944275234,0.04736993,63302.0,63301.0,0.007026]
[1726944276485,0.04736993,63302.0,63301.0,0.014026]
[1726944276705,0.04736552,63302.0,63301.0,0.014026]
[1726944276915,0.04736552,63302.0,63301.0,0.01939307]
[1726944278652,0.04736552,63302.0,63301.0,0.17736807]
[1726944281453,0.07270029,63304.0,63302.0,0.157972]
[1726944281454,0.04736552,63303.0,63302.0,0.157972]
[1726944281919,0.04901824,63304.0,63302.0,0.157972]
[1726944282131,0.04901824,63304.0,63302.0,0.16333962]
[1726944282340,0.04901824,63304.0,63302.0,0.157972]
[1726944282762,0.04901824,63304.0,63302.0,0.162972]
[1726944283835,0.04901824,63304.0,63302.0,0.168972]
[1726944284051,0.04901824,63304.0,63302.0,0.162972]
[1726944284537,0.04901824,63304.0,63302.0,0.166972]
[1726944286075,0.04901824,63304.0,63303.0,0.15797]
[1726944287413,0.04901824,63304.0,63303.0,0.16297]
[1726944287620,0.04901824,63304.0,63303.0,0.16697]
[1726944290215,0.04901824,63304.0,63303.0,0.17233664]
[1726944290647,0.04898725,63304.0,63303.0,0.16697]
[1726944298357,0.001652,63304.0,63303.0,0.16697]
[1726944298787,0.04898782,63304.0,63303.0,0.16697]
[1726944299321,0.001652,63304.0,63303.0,0.16697]
[1726944309014,0.001652,63304.0,63303.0,0.17233739]
[1726944309884,0.001652,63304.0,63303.0,0.16697]
[1726944310556,0.001652,63304.0,63303.0,0.17233739]
[1726944310795,0.001652,63304.0,63303.0,0.16697]
[1726944311660,0.001652,63304.0,63303.0,0.167796]
[1726944311872,0.04896582,63304.0,63303.0,0.167796]
[1726944312549,0.001652,63304.0,63303.0,0.45877972]
[1726944312777,0.001652,63304.0,63303.0,0.46414711]
[1726944313402,0.001652,63304.0,63303.0,0.46214711]
[1726944313622,0.001652,63304.0,63303.0,0.47414711]
[1726944313842,0.001652,63304.0,63303.0,0.46914711]
[1726944314069,0.001652,63304.0,63303.0,0.35236339]
[1726944314293,0.001652,63304.0,63303.0,0.33436339]
[1726944314698,0.001652,63304.0,63303.0,0.34836339]
[1726944315107,0.001652,63304.0,63303.0,0.36236339]
[1726944315575,0.001652,63304.0,63303.0,0.19216339]
[1726944316074,0.12078372,63304.0,63303.0,0.19216339]
[1726944316307,0.12078372,63304.0,63303.0,0.03419339]
[1726944316522,0.12078372,63304.0,63303.0,0.17816339]
[1726944316787,0.12078372,63304.0,63303.0,0.172796]
[1726944317001,0.12078372,63304.0,63303.0,0.170796]
[1726944317414,0.12078372,63304.0,63303.0,0.183796]
[1726944318494,0.12078372,63304.0,63303.0,0.20345271]
[1726944318921,0.04728168,63308.0,63304.0,0.157967]
[1726944318922,0.21488372,63307.0,63304.0,0.157967]
[1726944320055,0.37284472,63307.0,63303.0,0.012826]
[1726944320286,0.37284472,63307.0,63303.0,0.000826]
[1726944320514,0.4201264,63307.0,63304.0,0.019]
[1726944320940,0.4201264,63307.0,63304.0,0.01]
[1726944321326,0.37284472,63307.0,63303.0,0.167795]
[1726944321543,0.4201264,63307.0,63303.0,0.177795]
[1726944321958,0.4201264,63307.0,63303.0,0.167795]
[1726944322497,0.4201264,63307.0,63303.0,0.158795]
[1726944322963,0.4201264,63307.0,63304.0,0.009]
[1726944323174,0.4217784,63307.0,63304.0,0.009]
[1726944323378,0.4217784,63307.0,63304.0,0.01]
[1726944323558,0.4217784,63307.0,63303.0,0.158795]
[1726944323775,0.4217784,63307.0,63303.0,0.167795]
[1726944323776,0.37449672,63307.0,63303.0,0.167795]
[1726944324018,0.37449672,63307.0,63303.0,0.177795]
[1726944324243,0.12078372,63304.0,63303.0,0.000826]
[1726944325304,0.12078372,63304.0,63303.0,0.010826]
[1726944326148,0.12078372,63304.0,63303.0,0.019826]
[1726944326566,0.12078372,63304.0,63303.0,0.010826]
[1726944326792,0.12078372,63304.0,63303.0,0.012826]
[1726944327002,0.12078372,63304.0,63303.0,0.025826]
[1726944329437,0.27875072,63304.0,63303.0,0.025826]
[1726944330482,0.12078372,63304.0,63303.0,0.025826]
[1726944332313,0.27875072,63304.0,63303.0,0.025826]
[1726944342028,0.12078372,63304.0,63303.0,0.025826]
[1726944342301,0.04728742,63305.0,63303.0,0.025826]
[1726944342506,0.473902,63304.0,63303.0,0.025826]
[1726944342707,0.157967,63304.0,63303.0,0.025826]
[1726944342912,0.27875072,63304.0,63303.0,0.025826]
[1726944343348,0.59468572,63304.0,63303.0,0.013826]
[1726944343788,0.27875072,63304.0,63303.0,0.024826]
[1726944345264,0.27875072,63304.0,63303.0,0.013826]
[1726944345723,0.27875072,63304.0,63303.0,0.025826]
[1726944345989,0.27875072,63304.0,63303.0,0.0572908]
[1726944349023,0.27875072,63304.0,63303.0,0.025826]
[1726944349270,1.52999654,63304.0,63303.0,0.05728889]
[1726944349493,1.52999654,63304.0,63303.0,0.025826]
[1726944349494,1.16677439,63304.0,63303.0,0.025826]
[1726944349712,1.48270939,63304.0,63303.0,0.025826]
[1726944350130,1.48270939,63304.0,63303.0,0.013826]
[1726944350357,1.48270939,63304.0,63303.0,0.000826]
[1726944350812,1.48470939,63304.0,63303.0,0.000826]
[1726944351508,1.48470939,63304.0,63303.0,0.005826]
[1726944351951,1.48470939,63304.0,63303.0,0.000826]
[1726944352391,1.48670939,63304.0,63303.0,0.000826]
[1726944356946,1.60480605,63304.0,63303.0,0.000826]
[1726944357158,1.60480693,63304.0,63303.0,0.000826]
[1726944359284,1.48670939,63304.0,63303.0,0.000826]
[1726944363656,1.6048118,63304.0,63303.0,0.000826]
[1726944364768,1.60479667,63304.0,63303.0,0.000826]
[1726944369750,1.60479334,63304.0,63303.0,0.000826]
[1726944370508,1.48400962,63304.0,63303.0,0.000826]
[1726944370702,1.60479334,63304.0,63303.0,0.000826]
[1726944377842,1.28885834,63304.0,63303.0,0.000826]
[1726944378671,1.17077439,63304.0,63303.0,0.000826]
[1726944380102,1.28885834,63304.0,63303.0,0.000826]
[1726944380532,1.28485834,63304.0,63303.0,0.000826]
[1726944380956,1.28785834,63304.0,63303.0,0.000826]
[1726944381172,1.28485834,63304.0,63303.0,0.000826]
[1726944381636,1.28785834,63304.0,63303.0,0.000826]
[1726944381887,1.28985834,63304.0,63303.0,0.000826]
[1726944383214,1.28785834,63304.0,63303.0,0.000826]
[1726944383434,1.28985834,63304.0,63303.0,0.000826]
[1726944386592,1.17177439,63304.0,63303.0,0.000826]
[1726944391995,1.05099067,63304.0,63303.0,0.000826]
[1726944392241,1.17177439,63304.0,63303.0,0.000826]
[1726944402614,1.17177439,63304.0,63303.0,0.02054206]
[1726944402820,0.85583939,63304.0,63303.0,0.02054206]
[1726944403031,0.76273939,63304.0,63303.0,0.02054206]
[1726944403660,0.28883739,63304.0,63303.0,0.02054206]
[1726944403871,0.40512918,63304.0,63303.0,0.02054206]
[1726944404333,0.40412918,63304.0,63303.0,0.02054206]
[1726944404546,0.28783739,63304.0,63303.0,0.02054206]
[1726944404798,0.28583739,63304.0,63303.0,0.02054206]
[1726944405646,0.40411889,63304.0,63303.0,0.02054206]
[1726944405867,0.40211889,63304.0,63303.0,0.000826]
[1726944406094,0.40211889,63304.0,63303.0,0.02053012]
[1726944406740,0.28383739,63304.0,63303.0,0.02053012]
[1726944407155,0.40211889,63304.0,63303.0,0.000826]
[1726944407416,0.28383739,63304.0,63303.0,0.02052571]
[1726944408481,0.37844788,63304.0,63303.0,0.02052571]
[1726944408941,0.21539421,63304.0,63303.0,0.17849571]
[1726944409152,0.21539421,63304.0,63303.0,0.20346955]
[1726944409815,0.21538533,63304.0,63303.0,0.20346955]
[1726944410463,0.12078372,63304.0,63303.0,0.20346955]
[1726944412318,0.07094728,63305.0,63304.0,0.157967]
[1726944412569,0.04729515,63305.0,63304.0,0.16910303]
[1726944412811,0.04729515,63305.0,63304.0,0.20263084]
[1726944413487,0.04829515,63305.0,63304.0,0.20263084]
[1726944413917,0.04729515,63305.0,63304.0,0.20263084]
[1726944414148,0.04729515,63305.0,63304.0,0.18293752]
[1726944414352,0.04829515,63305.0,63304.0,0.20265801]
[1726944414557,0.001,63305.0,63304.0,0.20265801]
[1726944414773,0.04894715,63306.0,63304.0,0.20265801]
[1726944414774,0.04894715,63306.0,63305.0,0.157965]
[1726944414976,0.16470567,63306.0,63305.0,0.19151499]
[1726944416292,0.16470567,63306.0,63305.0,0.19351499]
[1726944416529,0.21198407,63306.0,63305.0,0.19351499]
[1726944416959,0.21198407,63306.0,63305.0,0.19551499]
[1726944417371,0.21198158,63306.0,63305.0,0.19551499]
[1726944417594,0.16470567,63306.0,63305.0,0.19551499]
[1726944418040,0.21198169,63306.0,63305.0,0.19551499]
[1726944419399,0.21198169,63306.0,63305.0,0.19551263]
[1726944421997,0.001652,63306.0,63305.0,0.19551263]
[1726944422444,0.001652,63306.0,63305.0,0.28631263]
[1726944422893,0.001652,63306.0,63305.0,0.30602754]
[1726944423119,0.001652,63306.0,63305.0,0.36833585]
[1726944423340,0.001652,63306.0,63305.0,0.3631771]
[1726944423550,0.001652,63306.0,63305.0,0.3691771]
[1726944424004,0.001652,63306.0,63305.0,0.3631771]
[1726944424251,0.001652,63306.0,63305.0,0.3611771]
[1726944424465,0.001652,63306.0,63305.0,0.3631771]
[1726944424674,0.001652,63307.0,63305.0,0.3631771]
[1726944424675,0.001652,63307.0,63306.0,0.157962]
[1726944424897,0.001652,63307.0,63306.0,0.43185395]
[1726944425103,0.001652,63307.0,63306.0,0.44251979]
[1726944425795,0.001652,63307.0,63306.0,0.45651979]
[1726944426483,0.001652,63307.0,63306.0,0.33573607]
[1726944426921,0.001652,63307.0,63306.0,0.34685622]
[1726944427775,0.001652,63307.0,63306.0,0.32042318]
[1726944429763,0.001652,63307.0,63306.0,0.30070666]
[1726944430196,0.001652,63307.0,63306.0,0.32038886]
[1726944434940,0.001652,63307.0,63306.0,0.30070666]
[1726944435644,0.001652,63307.0,63306.0,0.32040055]
[1726944436074,0.001652,63307.0,63306.0,0.30070666]
[1726944437049,0.001652,63307.0,63306.0,0.32040137]
[1726944438899,0.001652,63307.0,63306.0,0.32041432]
[1726944442133,0.00081236,63307.0,63306.0,0.32041432]
[1726944442345,0.00081236,63307.0,63306.0,0.30070666]
[1726944442564,0.00081236,63307.0,63306.0,0.32042905]
[1726944443023,0.2618538,63316.0,63313.0,0.157943]
[1726944443236,0.2618538,63316.0,63314.0,0.01972239]
[1726944443237,0.94770261,63315.0,63314.0,0.01972239]
[1726944443492,0.12078372,63316.0,63314.0,0.01972239]
[1726944443700,0.12078372,63316.0,63315.0,0.01972239]
[1726944444866,0.12243572,63316.0,63315.0,0.01972239]
[1726944445085,0.12243572,63316.0,63315.0,0.02772239]
[1726944447002,0.12243572,63316.0,63315.0,0.04150199]
[1726944450080,0.28037272,63316.0,63315.0,0.04150199]
[1726944450447,0.28037272,63316.0,63315.0,0.02772239]
[1726944450448,0.12243572,63316.0,63315.0,0.02772239]
[1726944455955,0.28037272,63316.0,63315.0,0.02772239]
[1726944457560,0.12243572,63316.0,63315.0,0.02772239]
[1726944459000,0.12243572,63316.0,63315.0,0.02372239]
[1726944459228,0.28037272,63316.0,63315.0,0.02372239]
[1726944459404,0.28037272,63316.0,63315.0,0.02572239]
[1726944459601,0.32764703,63316.0,63315.0,0.02572239]
[1726944460028,0.32764703,63316.0,63315.0,0.02172239]
[1726944460380,0.32764703,63316.0,63315.0,0.02372239]
[1726944460564,0.16971003,63316.0,63315.0,0.02372239]
[1726944461843,0.32764703,63316.0,63315.0,0.02372239]
[1726944462489,0.28037272,63316.0,63315.0,0.02372239]
[1726944462717,0.28037272,63316.0,63315.0,0.01972239]
[1726944462944,0.28037272,63316.0,63315.0,0.02072239]
[1726944463159,0.28037272,63316.0,63315.0,0.02172239]
[1726944463375,0.28037272,63316.0,63315.0,0.02072239]
[1726944463576,0.28037272,63316.0,63315.0,0.01972239]
[1726944463813,0.35132477,63316.0,63315.0,0.01972239]
[1726944464286,0.35132477,63316.0,63312.0,0.157947]
[1726944464505,0.04730958,63314.0,63313.0,0.0197412]
[1726944465608,0.07095205,63315.0,63313.0,0.0197412]
[1726944465817,0.07095205,63315.0,63314.0,0.0197412]
[1726944467319,0.37497546,63316.0,63314.0,0.0217412]
[1726944467537,0.37497546,63316.0,63315.0,0.0197412]
[1726944468426,0.39862614,63316.0,63315.0,0.0197412]
[1726944470391,0.39862614,63316.0,63315.0,0.0207412]
[1726944470620,0.39862614,63316.0,63315.0,0.0197412]
[1726944471641,0.28037272,63316.0,63315.0,0.0197412]
[1726944474983,0.28037272,63316.0,63314.0,0.000826]
[1726944475222,0.28037272,63316.0,63315.0,0.01968107]
[1726944477075,0.91212272,63316.0,63315.0,0.01968107]
[1726944477278,1.39105139,63316.0,63315.0,0.01968107]
[1726944478543,1.39205139,63316.0,63315.0,0.01968107]
[1726944479933,0.7897,63315.0,63314.0,0.000826]
[1726944480231,0.95275367,63315.0,63314.0,0.02052402]
[1726944481290,0.95375367,63315.0,63314.0,0.02052402]
[1726944482378,0.95375367,63315.0,63314.0,0.020523]
[1726944489980,0.95375367,63315.0,63314.0,0.000826]
[1726944490196,0.95375367,63315.0,63314.0,0.02052255]
[1726944494210,0.95375367,63315.0,63314.0,0.000826]
[1726944494420,0.95375367,63315.0,63314.0,0.02051518]
[1726944495710,1.07208325,63315.0,63314.0,0.02051518]
[1726944495924,0.75620325,63315.0,63314.0,0.02051518]
[1726944496551,0.75520325,63315.0,63314.0,0.02051518]
[1726944497018,0.75620325,63315.0,63314.0,0.02051518]
[1726944497248,0.75620325,63315.0,63314.0,0.000826]
[1726944497454,0.75720325,63315.0,63314.0,0.000826]
[1726944498320,0.75720325,63315.0,63314.0,0.02051798]
[1726944500565,0.44132325,63315.0,63314.0,0.02051798]
[1726944501621,0.32299367,63315.0,63314.0,0.02051798]
[1726944502046,0.44133202,63315.0,63314.0,0.02051798]
[1726944503624,0.43933202,63315.0,63314.0,0.02051798]
[1726944504009,0.44033202,63315.0,63314.0,0.02051798]
[1726944504231,0.43933202,63315.0,63314.0,0.02051798]
[1726944504877,0.28139202,63315.0,63314.0,0.02051798]
[1726944506389,0.28139202,63315.0,63314.0,0.000826]
[1726944506664,0.2814024,63315.0,63314.0,0.02053033]
[1726944508994,0.4393424,63315.0,63314.0,0.02053033]
[1726944512378,0.7552224,63315.0,63314.0,0.02053033]
[1726944512579,0.8472224,63315.0,63314.0,0.02053033]
[1726944515715,0.5313424,63315.0,63314.0,0.02053033]
[1726944516594,0.5313778,63315.0,63314.0,0.02053033]
[1726944517455,0.5313778,63315.0,63314.0,0.02050376]
[1726944520863,0.77333704,63315.0,63314.0,0.000826]
[1726944521069,0.77333704,63315.0,63314.0,0.02049501]
[1726944523137,1.08921704,63315.0,63314.0,0.02049501]
[1726944523577,0.97083291,63315.0,63314.0,0.02049501]
[1726944526746,0.97084119,63315.0,63314.0,0.02049501]
[1726944528586,0.40502119,63315.0,63314.0,0.02049501]
[1726944528809,0.56296119,63315.0,63314.0,0.02049501]
[1726944530552,0.87884119,63315.0,63314.0,0.02049501]
[1726944531032,0.87884119,63315.0,63314.0,0.02049868]
[1726944531952,0.87897659,63315.0,63314.0,0.02049868]
[1726944534383,0.96897659,63315.0,63314.0,0.02049868]
[1726944535753,0.41099367,63315.0,63314.0,0.02049868]
[1726944535964,0.56319873,63315.0,63314.0,0.02049868]
[1726944536408,0.96907873,63315.0,63314.0,0.02049868]
[1726944537077,0.65319873,63315.0,63314.0,0.02049868]
[1726944538365,0.65319873,63315.0,63314.0,0.02045743]
[1726944540098,0.65327444,63315.0,63314.0,0.02045743]
[1726944540592,0.40533444,63315.0,63314.0,0.02045743]
[1726944540819,0.24228077,63315.0,63314.0,0.17839943]
[1726944541071,0.12010127,63316.0,63315.0,0.15794]
[1726944541300,0.50188467,63316.0,63315.0,0.17757143]
[1726944541544,0.50188467,63316.0,63315.0,0.01963143]
[1726944542270,0.338831,63316.0,63315.0,0.17757143]
[1726944542535,0.001652,63316.0,63315.0,0.27007143]
[1726944542774,0.001652,63316.0,63315.0,0.30161718]
[1726944543988,0.001652,63316.0,63315.0,0.29861718]
[1726944544212,0.001652,63316.0,63315.0,0.29561718]
[1726944544445,0.001652,63316.0,63315.0,0.30461718]
[1726944544659,0.001652,63316.0,63315.0,0.29561718]
[1726944544871,0.001652,63316.0,63315.0,0.28598575]
[1726944545101,0.001652,63316.0,63315.0,0.31461672]
[1726944546026,0.001652,63316.0,63315.0,0.30561672]
[1726944547618,0.001652,63316.0,63315.0,0.29598575]
[1726944547842,0.001652,63316.0,63315.0,0.31560302]
[1726944548712,0.001652,63316.0,63315.0,0.30560302]
[1726944549149,0.001652,63316.0,63315.0,0.31460302]
[1726944550446,0.001652,63316.0,63315.0,0.29642902]
[1726944550655,0.001652,63316.0,63315.0,0.30542902]
[1726944551060,0.001652,63316.0,63315.0,0.31442902]
[1726944551943,0.001652,63316.0,63315.0,0.29481175]
[1726944552381,0.001652,63316.0,63315.0,0.31443001]
[1726944555296,0.001652,63316.0,63315.0,0.31443132]
[1726944558249,0.001652,63316.0,63315.0,0.29481175]
[1726944558470,0.001652,63316.0,63315.0,0.31440366]
[1726944558691,0.001652,63316.0,63315.0,0.31440184]
[1726944561164,0.001652,63320.0,63319.0,0.15793]
[1726944561395,0.001652,63320.0,63319.0,0.17752009]
[1726944561646,0.001652,63320.0,63319.0,0.23434574]
[1726944562126,0.001652,63320.0,63319.0,0.23433089]
[1726944562344,0.001652,63320.0,63319.0,0.33183089]
[1726944562816,0.001652,63320.0,63319.0,0.33683089]
[1726944563038,0.001652,63320.0,63319.0,0.34183089]
[1726944567506,0.001652,63320.0,63319.0,0.68968456]
[1726944568648,0.001652,63320.0,63319.0,0.71132456]
[1726944568860,0.001652,63320.0,63319.0,0.72332456]
[1726944569072,0.001652,63320.0,63319.0,0.72832456]
[1726944569277,0.001652,63320.0,63319.0,0.71632456]
[1726944569502,0.001652,63320.0,63319.0,0.72532456]
[1726944569708,0.001652,63320.0,63319.0,0.73932456]
[1726944569935,0.001652,63320.0,63319.0,0.72532456]
[1726944570353,0.001652,63320.0,63319.0,0.75803314]
[1726944572285,0.001652,63320.0,63319.0,0.70713759]
[1726944572504,0.001652,63320.0,63319.0,0.72657809]
[1726944572708,0.001652,63320.0,63319.0,0.75768289]
[1726944572925,0.001652,63320.0,63319.0,0.7742343]
[1726944573642,0.001652,63320.0,63319.0,0.7722343]
[1726944574112,0.001652,63320.0,63319.0,0.7742343]
[1726944574360,0.001652,63320.0,63319.0,0.77423254]
[1726944575461,0.001652,63320.0,63319.0,0.77418008]
[1726944575679,0.001652,63320.0,63319.0,0.70713759]
[1726944575916,0.001652,63320.0,63319.0,0.72362964]
[1726944576149,0.001652,63320.0,63319.0,0.77406036]
[1726944576597,0.001652,63320.0,63319.0,0.77206036]
[1726944576823,0.001652,63320.0,63319.0,0.75556831]
[1726944577042,0.001652,63320.0,63319.0,0.77206036]
[1726944577491,0.001652,63320.0,63319.0,0.75335178]
[1726944577730,0.001652,63320.0,63319.0,0.73685973]
[1726944579072,0.001652,63320.0,63319.0,0.73688459]
[1726944581175,0.0995,63328.0,63327.0,0.15791]
[1726944581383,0.0995,63328.0,63327.0,0.23376847]
[1726944582245,0.21228372,63331.0,63330.0,0.157903]
[1726944582475,0.21228372,63331.0,63330.0,0.17730572]
[1726944582476,0.0915,63331.0,63330.0,0.17730572]
[1726944582678,0.21228372,63331.0,63330.0,0.20834893]
[1726944583306,0.21228372,63331.0,63330.0,0.21734893]
[1726944583510,0.21228372,63331.0,63330.0,0.18630572]
[1726944583739,0.21228372,63331.0,63330.0,0.21732896]
[1726944584197,0.21228372,63331.0,63330.0,0.22732896]
[1726944584649,0.21228372,63331.0,63330.0,0.21732896]
[1726944584887,0.21228372,63331.0,63330.0,0.19530572]
[1726944585130,0.21228372,63331.0,63330.0,0.2090105]
[1726944585855,0.21228372,63331.0,63330.0,0.20905834]
[1726944586073,0.21228372,63331.0,63330.0,0.24017951]
[1726944586815,0.21393572,63331.0,63330.0,0.24017951]
[1726944588164,0.21393572,63331.0,63330.0,0.20905834]
[1726944589102,0.21393572,63331.0,63330.0,0.20904309]
[1726944591442,0.21393572,63331.0,63330.0,0.05114009]
[1726944591443,0.37183572,63331.0,63330.0,0.05114009]
[1726944591684,0.68763672,63331.0,63330.0,0.03743531]
[1726944592147,0.68763672,63331.0,63330.0,0.02843531]
[1726944592609,0.68763672,63331.0,63330.0,0.016]
[1726944592835,0.157903,63330.0,63326.0,0.157912]
[1726944593066,0.12078372,63327.0,63326.0,0.157912]
[1726944593731,0.12078372,63327.0,63324.0,0.157917]
[1726944593943,0.22048372,63325.0,63324.0,0.157918]
[1726944595302,0.22048372,63325.0,63324.0,0.17165271]
[1726944595510,0.22048372,63325.0,63324.0,0.157918]
[1726944596354,0.22048372,63325.0,63324.0,0.162918]
[1726944596781,0.22048372,63325.0,63324.0,0.167918]
[1726944596995,0.22048372,63325.0,63324.0,0.18165271]
[1726944597569,0.22048372,63325.0,63324.0,0.162918]
[1726944598202,0.22048372,63325.0,63324.0,0.168918]
[1726944598388,0.22048372,63325.0,63324.0,0.163918]
[1726944599786,0.22048372,63325.0,63324.0,0.169918]
[1726944601907,0.22048372,63325.0,63324.0,0.163918]
[1726944602319,0.22048372,63325.0,63324.0,0.167918]
[1726944602557,0.22048372,63325.0,63324.0,0.163918]
[1726944602760,0.22048372,63325.0,63324.0,0.157918]
[1726944602958,0.22048372,63325.0,63324.0,0.161918]
[1726944603192,0.22048372,63325.0,63324.0,0.166918]
[1726944603536,0.22048372,63325.0,63324.0,0.161918]
[1726944603907,0.22048372,63325.0,63324.0,0.165918]
[1726944608770,0.251804,63330.0,63326.0,0.157912]
[1726944608988,0.251804,63330.0,63327.0,0.15791]
[1726944608989,0.12078372,63328.0,63327.0,0.15791]
[1726944609213,0.12078372,63328.0,63324.0,0.004]
[1726944609486,0.12078372,63328.0,63327.0,0.02296549]
[1726944609720,0.12078372,63328.0,63326.0,0.157911]
[1726944609948,0.12078372,63328.0,63327.0,0.02296549]
[1726944610180,0.12078372,63328.0,63327.0,0.02496549]
[1726944610401,0.12078372,63328.0,63327.0,0.02696549]
[1726944610628,0.12078372,63328.0,63327.0,0.02496549]
[1726944611539,0.12078372,63328.0,63327.0,0.18087549]
[1726944612448,0.12078372,63328.0,63327.0,0.18287549]
[1726944612661,0.12078372,63328.0,63327.0,0.18487549]
[1726944614880,0.12078372,63328.0,63327.0,0.18287549]
[1726944615551,0.001652,63331.0,63329.0,0.157904]
[1726944615552,0.12243572,63331.0,63329.0,0.157904]
[1726944616254,0.12243572,63331.0,63330.0,0.0229548]
[1726944616945,0.12243572,63331.0,63329.0,0.160905]
[1726944617158,0.12243572,63331.0,63329.0,0.163905]
[1726944618053,0.12243572,63331.0,63329.0,0.160905]
[1726944618287,0.12243572,63331.0,63329.0,0.157905]
[1726944618520,0.12243572,63331.0,63330.0,0.003]
[1726944618741,0.12243572,63331.0,63330.0,0.006]
[1726944618973,0.12243572,63331.0,63329.0,0.157905]
[1726944619196,0.12243572,63331.0,63329.0,0.160905]
[1726944619926,0.12243572,63331.0,63329.0,0.157905]
[1726944620150,0.12243572,63331.0,63330.0,0.006]
[1726944620369,0.12243572,63331.0,63330.0,0.003]
[1726944621261,0.12243572,63331.0,63329.0,0.157905]
[1726944621477,0.12243572,63331.0,63330.0,0.157903]
[1726944623062,0.12243572,63331.0,63330.0,0.006]
[1726944626034,0.157898,63332.0,63330.0,0.006]
[1726944626255,0.12078372,63331.0,63330.0,0.006]
[1726944627623,0.12078372,63331.0,63330.0,0.003]
[1726944627842,0.12078372,63331.0,63330.0,0.002]
[1726944628308,0.12078372,63331.0,63329.0,0.157905]
[1726944628530,0.12078372,63331.0,63330.0,0.005]
[1726944629188,0.12078372,63331.0,63330.0,0.004]
[1726944629416,0.12078372,63331.0,63329.0,0.157905]
[1726944629655,0.12078372,63331.0,63330.0,0.005]
[1726944630618,0.12078372,63331.0,63329.0,0.005]
[1726944630847,0.12078372,63331.0,63330.0,0.004]
[1726944631588,0.12078372,63331.0,63330.0,0.008]
[1726944632288,0.12078372,63331.0,63330.0,0.004]
[1726944632968,0.12078372,63331.0,63330.0,0.008]
[1726944634785,0.27868372,63331.0,63330.0,0.008]
[1726944635519,1.28884321,63331.0,63330.0,0.008]
[1726944635769,1.28568914,63331.0,63330.0,0.008826]
[1726944636008,1.16889139,63331.0,63330.0,0.008826]
[1726944639303,1.16889139,63331.0,63330.0,0.004826]
[1726944639776,1.16889139,63331.0,63330.0,0.000826]
[1726944640026,0.157925,63321.0,63320.0,0.000826]
[1726944640244,0.37260872,63321.0,63320.0,0.23773481]
[1726944640469,0.37260872,63321.0,63320.0,0.000826]
[1726944640713,0.37260872,63321.0,63320.0,0.02163567]
[1726944640934,0.37260872,63321.0,63320.0,0.000826]
[1726944641143,0.41998045,63321.0,63320.0,0.000826]
[1726944641359,0.37260872,63321.0,63320.0,0.000826]
[1726944641809,0.37260872,63321.0,63320.0,0.007826]
[1726944642656,0.37260872,63321.0,63320.0,0.014826]
[1726944643579,0.21468372,63321.0,63320.0,0.014826]
[1726944644039,0.21783779,63321.0,63320.0,0.014826]
[1726944646478,0.21783779,63321.0,63320.0,0.03563567]
[1726944647184,0.37576279,63321.0,63320.0,0.03563567]
[1726944647397,0.37260872,63321.0,63320.0,0.03563567]
[1726944647618,0.37260872,63321.0,63320.0,0.0286005]
[1726944651021,0.21468372,63321.0,63320.0,0.0286005]
[1726944651466,0.37260872,63321.0,63320.0,0.0286005]
[1726944652576,0.21468372,63321.0,63320.0,0.0286005]
[1726944653675,0.21783779,63321.0,63320.0,0.0286005]
[1726944655301,0.37576279,63321.0,63320.0,0.0286005]
[1726944655541,0.37260872,63321.0,63320.0,0.0286005]
[1726944659938,0.21468372,63321.0,63320.0,0.04795222]
[1726944662007,0.21468372,63321.0,63320.0,0.0286005]
[1726944662419,0.21468372,63321.0,63320.0,0.04797541]
[1726944662665,0.21468372,63321.0,63320.0,0.0286005]
[1726944670814,0.37260872,63321.0,63320.0,0.0286005]
[1726944671031,1.00430872,63321.0,63320.0,0.0286005]
[1726944671259,0.68845872,63321.0,63320.0,0.0286005]
[1726944673686,0.37260872,63321.0,63320.0,0.0286005]
[1726944674284,0.37260872,63321.0,63320.0,0.05964417]
[1726944675595,0.37260872,63321.0,63320.0,0.0286005]
[1726944675798,0.37260872,63321.0,63320.0,0.05963173]
[1726944675998,0.37260872,63321.0,63320.0,0.0286005]
[1726944676660,0.12078372,63321.0,63320.0,0.0286005]
[1726944676809,0.27870872,63321.0,63320.0,0.0286005]
[1726944677218,0.27870872,63321.0,63320.0,0.04941482]
[1726944677656,0.27870872,63321.0,63320.0,0.0286005]
[1726944680557,0.32602736,63321.0,63320.0,0.0286005]
[1726944681419,0.27870872,63321.0,63320.0,0.0286005]
[1726944682378,0.34968668,63321.0,63320.0,0.0286005]
[1726944683073,0.27870872,63321.0,63320.0,0.0286005]